[Event "DVM U20w 2019"]
[Site "Braunschweig"]
[Date "2019.12.28"]
[Round "4"]
[White "Rudolph, Eva"]
[Black "Moenster, Madita"]
[Result "1-0"]
[ECO "B23"]
[WhiteElo "1711"]
[BlackElo "1956"]
[Annotator "NA"]
[PlyCount "126"]
[EventDate "2019.12.27"]
[EventType "team-tourn"]
[EventRounds "7"]
[EventCountry "GER"]
[SourceTitle "playchess.com"]
[Source "ChessBase"]
[SourceQuality "1"]
[WhiteTeam "Düsseldorfer SK"]
[BlackTeam "SV Lingen"]
[TimeControl "40/5400+30:1800+30"]

1. e4 {[%emt 0:00:00]} c5 {[%emt 0:00:00]} 2. Nc3 {[%emt 0:00:00]} a6 {[%emt 0:00:00]} 3. f4 {[%emt 0:00:53]} b5 {[%emt 0:00:02]} 4. Nf3 {[%emt 0:01:09]} Bb7 {[%emt 0:00:23]} 5. d3 {[%emt 0:00:48]} Nf6 {[%emt 0:01:51]} 6. a3 {[%emt 0:02:26]} e6 {[%emt 0:01:20]} 7. Be2 {[%emt 0:01:53]} Be7 {[%emt 0:02:58]} 8. O-O {[%emt 0:00:54]} d5 {[%emt 0:05:10]} 9. e5 {[%emt 0:03:22]} Nfd7 {[%emt 0:02:46]} 10. d4 {[%emt 0:01:45]} O-O {[%emt 0:03:17]} 11. Kh1 {[%emt 0:01:46]} Nc6 {[%emt 0:03:10]} 12. Be3 {[%emt 0:04:13]} Na5 {[%emt 0:08:32]} 13. Nd2 {[%emt 0:10:46]} Qc7 {[%emt 0:06:07]} 14. Rf3 {[%emt 0:07:52]} f6 {[%emt 0:05:02]} 15. Rh3 {[%emt 0:05:21]} cxd4 {[%emt 0:15:09]} 16. Bxd4 {[%emt 0:00:55]} fxe5 {[%emt 0:02:14]} 17. Bd3 {[%emt 0:09:42]} Bf6 {[%emt 0:13:50]} 18. Bxh7+ {[%emt 0:15:35]} Kf7 {[%emt 0:00:19]} 19. Qh5+ {[%emt 0:00:34]} Ke7 {[%emt 0:00:35]} 20. fxe5 {[%emt 0:01:19]} Bxe5 {[%emt 0:06:12]} 21. Nf3 {[%emt 0:13:05]} Bxd4 {[%emt 0:03:50]} 22. Nxd4 {[%emt 0:01:54]} Qf4 {[%emt 0:01:18]} 23. Nce2 {[%emt 0:02:50]} Qe5 {[%emt 0:06:47]} 24. Qh4+ {[%emt 0:01:39]} Qf6 {[%emt 0:01:45]} 25. Re1 {[%emt 0:06:15]} Nc6 {[%emt 0:01:58]} 26. Nxc6+ {[%emt 0:01:26]} Bxc6 {[%emt 0:00:12]} 27. Nf4 {[%emt 0:01:25]} Kd6 {[%emt 0:01:14]} 28. Qxf6 {[%emt 0:02:21]} Rxf6 {[%emt 0:00:48]} 29. Nd3 {[%emt 0:00:32]} Raf8 {[%emt 0:00:48]} 30. Kg1 {[%emt 0:00:33]} Rh8 {[%emt 0:01:20]} 31. Bf5 {[%emt 0:00:43]} Rxh3 {[%emt 0:00:07]} 32. Bxh3 {[%emt 0:00:04]} d4 {[%emt 0:01:42]} 33. Nb4 {[%emt 0:01:02]} Nc5 {[%emt 0:02:19]} 34. Nxc6 {[%emt 0:00:23]} Kxc6 {[%emt 0:00:06]} 35. b4 {[%emt 0:00:24]} Na4 {[%emt 0:00:50]} 36. Rxe6+ {[%emt 0:00:56]} Rxe6 {[%emt 0:00:22]} 37. Bxe6 {[%emt 0:00:02]} Nc3 {[%emt 0:00:23]} 38. h4 {[%emt 0:00:36]} Nb1 {[%emt 0:01:13]} 39. g4 {[%emt 0:00:56]} Nxa3 {[%emt 0:01:04]} 40. Bb3 {[%emt 0:00:38]} Kd6 {[%emt 0:00:58]} 41. Kf2 {[%emt 0:30:53]} Ke5 {[%emt 0:30:58]} 42. Kg3 {[%emt 0:00:00]} Nc4 {[%emt 0:00:00]} 43. h5 {[%emt 0:00:00]} Nd2 {[%emt 0:00:00]} 44. g5 {[%emt 0:00:00]} Kf5 {[%emt 0:00:00]} 45. h6 {[%emt 0:00:00]} gxh6 {[%emt 0:00:00]} 46. gxh6 {[%emt 0:00:00]} Kg6 {[%emt 0:00:00]} 47. Kf4 {[%emt 0:00:00]} Kxh6 {[%emt 0:00:00]} 48. Be6 {[%emt 0:00:00]} Kg6 {[%emt 0:00:00]} 49. Bc8 {[%emt 0:00:00]} Nc4 {[%emt 0:00:00]} 50. Bxa6 {[%emt 0:00:00]} Na3 {[%emt 0:00:00]} 51. Bc8 {[%emt 0:00:44]} Kf6 {[%emt 0:02:50]} 52. Bf5 {[%emt 0:00:47]} Nc4 {[%emt 0:00:48]} 53. Bd3 {[%emt 0:00:41]} Nd6 {[%emt 0:00:53]} 54. Bh7 {[%emt 0:01:20]} Ke6 {[%emt 0:00:45]} 55. Bg8+ {[%emt 0:00:21]} Kf6 {[%emt 0:00:59]} 56. Bd5 {[%emt 0:00:36]} Nc4 {[%emt 0:01:23]} 57. Bxc4 {[%emt 0:02:33]} bxc4 {[%emt 0:00:12]} 58. Ke4 {[%emt 0:00:12]} d3 {[%emt 0:00:18]} 59. cxd3 {[%emt 0:00:17]} c3 {[%emt 0:00:50]} 60. Ke3 {[%emt 0:00:21]} Ke5 {[%emt 0:00:07]} 61. d4+ {[%emt 0:00:27]} Kd5 {[%emt 0:00:05]} 62. Kd3 {[%emt 0:00:15]} c2 {[%emt 0:00:09]} 63. Kxc2 {[%emt 0:00:07]} Kxd4 {[%emt 0:00:04] normal} 1-0

[Event "DVM U20w 2019"]
[Site "Braunschweig"]
[Date "2019.12.28"]
[Round "4"]
[White "Schiewe, Nadin"]
[Black "Doll, Rebecca"]
[Result "0-1"]
[ECO "D05"]
[WhiteElo "1629"]
[BlackElo "1659"]
[Annotator "NA"]
[PlyCount "107"]
[EventDate "2019.12.27"]
[EventType "team-tourn"]
[EventRounds "7"]
[EventCountry "GER"]
[SourceTitle "playchess.com"]
[Source "ChessBase"]
[SourceQuality "1"]
[WhiteTeam "Leegebrucher SF"]
[BlackTeam "OSG Baden-Baden"]
[TimeControl "40/5400+30:1800+30"]

1. d4 {[%emt 0:00:00]} d5 {[%emt 0:00:00]} 2. Nf3 {[%emt 0:00:00]} e6 {[%emt 0:00:00]} 3. e3 {[%emt 0:00:16]} Nf6 {[%emt 0:00:30]} 4. Bd3 {[%emt 0:00:24]} c5 {[%emt 0:01:10]} 5. c3 {[%emt 0:00:26]} Nc6 {[%emt 0:00:22]} 6. Nbd2 {[%emt 0:00:45]} b6 {[%emt 0:02:26]} 7. Bb5 {[%emt 0:08:21]} Bd7 {[%emt 0:00:57]} 8. O-O {[%emt 0:00:33]} Bd6 {[%emt 0:02:49]} 9. Re1 {[%emt 0:01:53]} O-O {[%emt 0:01:09]} 10. Qe2 {[%emt 0:03:49]} Qc7 {[%emt 0:06:21]} 11. Bd3 {[%emt 0:05:18]} Rfe8 {[%emt 0:03:32]} 12. h3 {[%emt 0:06:06]} Rad8 {[%emt 0:09:07]} 13. b3 {[%emt 0:04:18]} e5 {[%emt 0:03:31]} 14. dxe5 {[%emt 0:00:39]} Nxe5 {[%emt 0:00:26]} 15. Nxe5 {[%emt 0:00:56]} Bxe5 {[%emt 0:00:32]} 16. Bb2 {[%emt 0:00:19]} Bc6 {[%emt 0:12:23]} 17. Nf3 {[%emt 0:03:50]} Bd6 {[%emt 0:02:50]} 18. Qc2 {[%emt 0:02:31]} h6 {[%emt 0:07:44]} 19. Rad1 {[%emt 0:08:01]} Qb7 {[%emt 0:02:58]} 20. Be2 {[%emt 0:03:32]} Ne4 {[%emt 0:08:34]} 21. a4 {[%emt 0:05:40]} Bb8 {[%emt 0:04:46]} 22. Bb5 {[%emt 0:04:07]} Rd6 {[%emt 0:12:44]} 23. Bxc6 {[%emt 0:02:09]} Qxc6 {[%emt 0:00:21]} 24. c4 {[%emt 0:01:29]} dxc4 {[%emt 0:02:12]} 25. Qxc4 {[%emt 0:02:43]} Red8 {[%emt 0:07:00]} 26. Rxd6 {[%emt 0:08:30]} Rxd6 {[%emt 0:04:42]} 27. Be5 {[%emt 0:04:20]} Rg6 {[%emt 0:01:14]} 28. Bxb8 {[%emt 0:11:47]} Nd2 {[%emt 0:00:28]} 29. Qxf7+ {[%emt 0:04:28]} Kxf7 {[%emt 0:01:32]} 30. Ne5+ {[%emt 0:00:06]} Ke8 {[%emt 0:00:32]} 31. Nxc6 {[%emt 0:00:13]} Nf3+ {[%emt 0:00:46]} 32. Kf1 {[%emt 0:00:23]} Nxe1 {[%emt 0:00:03]} 33. Ne5 {[%emt 0:00:26]} Rxg2 {[%emt 0:01:12]} 34. Kxe1 {[%emt 0:00:14]} a6 {[%emt 0:00:50]} 35. Ba7 {[%emt 0:02:06]} Rg5 {[%emt 0:00:22]} 36. Nd3 {[%emt 0:00:56]} b5 {[%emt 0:00:20]} 37. axb5 axb5 {[%emt 0:00:38]} 38. Bxc5 {[%emt 0:00:34]} Rh5 {[%emt 0:00:15]} 39. Bd4 {[%emt 0:00:39]} Kf7 {[%emt 0:01:06]} 40. Nf4 {[%emt 0:01:32]} Rh4 {[%emt 0:00:17]} 41. b4 {[%emt 0:33:30]} g5 {[%emt 0:01:44]} 42. Nd5 {[%emt 0:00:00]} Rxh3 {[%emt 0:00:30]} 43. Nc7 {[%emt 0:00:00]} Rh1+ {[%emt 0:00:36]} 44. Ke2 {[%emt 0:00:00]} Rb1 {[%emt 0:00:58]} 45. Bc5 {[%emt 0:00:00]} g4 {[%emt 0:00:58]} 46. Nxb5 {[%emt 0:00:00]} h5 {[%emt 0:00:28]} 47. Nd6+ {[%emt 0:00:00]} Ke6 {[%emt 0:01:15]} 48. b5 {[%emt 0:00:00]} h4 {[%emt 0:00:42]} 49. b6 {[%emt 0:00:00]} h3 {[%emt 0:03:11]} 50. Ne4 {[%emt 0:00:00]} h2 {[%emt 0:06:44]} 51. Ng3 {[%emt 0:00:00]} Kd7 {[%emt 0:01:01] normal} 52. b7 {[%emt 0:00:00]} Kc7 {[%emt 0:00:44] normal} 53. b8=Q+ {[%emt 0:00:00]} Kxb8 {[%emt 0:00:16] normal} 54. f4 0-1

[Event "DVM U20w 2019"]
[Site "Braunschweig"]
[Date "2019.12.28"]
[Round "4"]
[White "Pavlov, Liliane"]
[Black "Schilay, Maria"]
[Result "1-0"]
[ECO "D30"]
[WhiteElo "1623"]
[BlackElo "1450"]
[Annotator "NA"]
[PlyCount "93"]
[EventDate "2019.12.27"]
[EventType "team-tourn"]
[EventRounds "7"]
[EventCountry "GER"]
[SourceTitle "playchess.com"]
[Source "ChessBase"]
[SourceQuality "1"]
[WhiteTeam "SC Bavaria Regensburg"]
[BlackTeam "SC Erlangen 48/88"]
[TimeControl "40/5400+30:1800+30"]

1. d4 {[%emt 0:00:00]} d5 {[%emt 0:00:00]} 2. c4 {[%emt 0:00:00]} e6 {[%emt 0:00:00]} 3. Nf3 {[%emt 0:00:00]} Nf6 {[%emt 0:00:42]} 4. g3 {[%emt 0:00:03]} c5 {[%emt 0:01:39]} 5. cxd5 {[%emt 0:01:23]} exd5 {[%emt 0:05:49]} 6. Bg2 {[%emt 0:01:28]} Be6 {[%emt 0:00:59]} 7. Nc3 {[%emt 0:01:43]} Nc6 {[%emt 0:03:39]} 8. O-O {[%emt 0:01:21]} Be7 {[%emt 0:03:26]} 9. dxc5 {[%emt 0:07:56]} Bxc5 {[%emt 0:00:25]} 10. b3 {[%emt 0:02:38]} O-O {[%emt 0:02:59]} 11. Bb2 {[%emt 0:00:43]} Qe7 {[%emt 0:05:10]} 12. e3 {[%emt 0:03:45]} Rfd8 {[%emt 0:02:49]} 13. Qe2 {[%emt 0:00:44]} d4 {[%emt 0:03:06]} 14. exd4 {[%emt 0:03:04]} Nxd4 {[%emt 0:05:02]} 15. Nxd4 {[%emt 0:02:04]} Bxd4 {[%emt 0:00:48]} 16. Rac1 {[%emt 0:05:13]} Rac8 {[%emt 0:08:02]} 17. Rfe1 {[%emt 0:12:55]} Bb6 {[%emt 0:14:36]} 18. Na4 {[%emt 0:02:32]} Ba5 {[%emt 0:04:21]} 19. Red1 {[%emt 0:02:26]} Rxc1 {[%emt 0:10:41]} 20. Rxc1 {[%emt 0:01:33]} Re8 {[%emt 0:04:57]} 21. Bxf6 {[%emt 0:05:02]} gxf6 {[%emt 0:01:45]} 22. Qh5 {[%emt 0:04:31]} Bb4 {[%emt 0:03:10]} 23. Be4 {[%emt 0:08:03]} f5 {[%emt 0:02:32]} 24. Bxf5 {[%emt 0:00:20]} Bxf5 {[%emt 0:00:35]} 25. Qxf5 {[%emt 0:00:38]} b6 {[%emt 0:04:43]} 26. Rc4 {[%emt 0:01:53]} Qe1+ {[%emt 0:04:31]} 27. Kg2 {[%emt 0:00:20]} Re6 {[%emt 0:00:40]} 28. Nb2 {[%emt 0:05:47]} Bf8 {[%emt 0:01:54]} 29. h4 {[%emt 0:02:27]} Qd2 {[%emt 0:01:34]} 30. Rc7 {[%emt 0:08:25]} Re7 {[%emt 0:00:59]} 31. Rc8 {[%emt 0:02:23]} Qh6 {[%emt 0:00:48]} 32. h5 {[%emt 0:05:02]} Qg7 {[%emt 0:01:12]} 33. Nd3 {[%emt 0:01:27]} Re6 {[%emt 0:00:41]} 34. Nf4 {[%emt 0:01:58]} Rf6 {[%emt 0:00:43]} 35. Qe4 {[%emt 0:01:05]} h6 {[%emt 0:01:08]} 36. Nd5 {[%emt 0:01:26]} Re6 {[%emt 0:00:28]} 37. Qf4 {[%emt 0:03:32]} Kh8 {[%emt 0:01:02]} 38. Qb4 {[%emt 0:01:35]} Kg8 {[%emt 0:00:40]} 39. Qc4 {[%emt 0:00:53]} Kh8 {[%emt 0:00:15]} 40. Nc7 {[%emt 0:00:40]} Re7 {[%emt 0:00:40]} 41. Ne8 {[%emt 0:01:02]} Qe5 {[%emt 0:05:09]} 42. Nc7 {[%emt 0:02:33]} Qg7 {[%emt 0:00:40]} 43. Nd5 {[%emt 0:04:07]} Re6 {[%emt 0:01:52]} 44. Ne3 {[%emt 0:03:25]} Kg8 {[%emt 0:03:18]} 45. Qb4 {[%emt 0:05:12]} Re5 {[%emt 0:03:00]} 46. Qd6 {[%emt 0:09:19]} f6 {[%emt 0:07:03]} 47. Nd5 {[%emt 0:01:46] normal} 1-0

[Event "DVM U20w 2019"]
[Site "Braunschweig"]
[Date "2019.12.28"]
[Round "4"]
[White "Rempe, Mieke"]
[Black "Schmidt, Pauline"]
[Result "1/2-1/2"]
[ECO "B90"]
[WhiteElo "1619"]
[BlackElo "1628"]
[Annotator "NA"]
[PlyCount "103"]
[EventDate "2019.12.27"]
[EventType "team-tourn"]
[EventRounds "7"]
[EventCountry "GER"]
[SourceTitle "playchess.com"]
[Source "ChessBase"]
[SourceQuality "1"]
[WhiteTeam "SK Doppelbauer Kiel"]
[BlackTeam "SG Blau-Weiß Stadtilm"]
[TimeControl "40/5400+30:1800+30"]

1. e4 {[%emt 0:00:00]} c5 {[%emt 0:00:00]} 2. Nf3 {[%emt 0:00:04]} d6 {[%emt 0:00:00]} 3. d4 {[%emt 0:00:39]} cxd4 {[%emt 0:00:00]} 4. Nxd4 {[%emt 0:00:42]} Nf6 {[%emt 0:00:09]} 5. Nc3 {[%emt 0:00:28]} a6 {[%emt 0:00:09]} 6. a4 {[%emt 0:00:50]} e5 {[%emt 0:00:36]} 7. Nf3 {[%emt 0:01:37]} b6 {[%emt 0:08:16]} 8. Bc4 {[%emt 0:02:54]} h6 {[%emt 0:04:47]} 9. O-O {[%emt 0:08:28]} Be7 {[%emt 0:02:55]} 10. Nd5 {[%emt 0:02:54]} O-O {[%emt 0:14:21]} 11. Nxf6+ {[%emt 0:01:33]} Bxf6 {[%emt 0:00:23]} 12. Bd5 {[%emt 0:00:08]} Ra7 {[%emt 0:00:23]} 13. Ne1 {[%emt 0:00:54]} Nd7 {[%emt 0:05:09]} 14. Ra3 {[%emt 0:01:50]} Nc5 {[%emt 0:02:57]} 15. b4 {[%emt 0:01:11]} Ne6 {[%emt 0:00:49]} 16. Bxe6 {[%emt 0:05:24]} Bxe6 {[%emt 0:01:31]} 17. f4 {[%emt 0:00:41]} Qa8 {[%emt 0:04:57]} 18. Qxd6 {[%emt 0:03:12]} Qxe4 {[%emt 0:03:53]} 19. Qxb6 {[%emt 0:00:41]} Rb7 {[%emt 0:01:22]} 20. Qf2 {[%emt 0:04:06]} Qxb4 {[%emt 0:03:25]} 21. Nd3 {[%emt 0:00:59]} Qd6 {[%emt 0:02:17]} 22. fxe5 {[%emt 0:13:20]} Bxe5 {[%emt 0:00:52]} 23. Nxe5 {[%emt 0:00:26]} Qxe5 {[%emt 0:00:29]} 24. Re3 {[%emt 0:01:23]} Qh5 {[%emt 0:04:39]} 25. Rxe6 {[%emt 0:01:10]} fxe6 {[%emt 0:03:30]} 26. Qxf8+ {[%emt 0:00:11]} Kh7 {[%emt 0:00:02]} 27. Qf4 {[%emt 0:01:27]} Qc5+ {[%emt 0:01:41]} 28. Rf2 {[%emt 0:01:17]} Rb4 {[%emt 0:03:43]} 29. Qe3 {[%emt 0:00:50]} Qxe3 {[%emt 0:02:11]} 30. Bxe3 {[%emt 0:00:14]} Rxa4 {[%emt 0:00:06]} 31. Kf1 {[%emt 0:02:39]} Rc4 {[%emt 0:01:52]} 32. Ke1 {[%emt 0:00:48]} Rc8 {[%emt 0:02:48]} 33. Rd2 {[%emt 0:02:24]} a5 {[%emt 0:02:23]} 34. Kd1 {[%emt 0:00:32]} Rf8 {[%emt 0:01:02]} 35. Rd7 {[%emt 0:01:56]} Kg6 {[%emt 0:04:55]} 36. Bd4 {[%emt 0:02:34]} Rg8 {[%emt 0:01:27]} 37. Ra7 {[%emt 0:00:16]} Rd8 {[%emt 0:02:52]} 38. Rxg7+ Kf5 {[%emt 0:00:32]} 39. c3 {[%emt 0:05:32]} e5 {[%emt 0:00:14]} 40. Ra7 {[%emt 0:00:11]} exd4 {[%emt 0:00:18]} 41. Rxa5+ {[%emt 0:30:07]} Ke4 {[%emt 0:30:50]} 42. Ra4 {[%emt 0:00:18]} Ke3 {[%emt 0:02:00]} 43. Rxd4 {[%emt 0:00:27]} Rxd4+ {[%emt 0:01:55]} 44. cxd4 {[%emt 0:00:07]} Kxd4 {[%emt 0:00:03]} 45. Kd2 {[%emt 0:00:25]} Ke4 {[%emt 0:02:40]} 46. Ke2 {[%emt 0:00:43]} Kf4 {[%emt 0:01:02]} 47. Kf2 {[%emt 0:02:39]} Kg4 {[%emt 0:05:13]} 48. h3+ {[%emt 0:02:54]} Kf4 {[%emt 0:03:06]} 49. g3+ {[%emt 0:05:25]} Kf5 {[%emt 0:01:24]} 50. Kf3 {[%emt 0:05:33]} h5 {[%emt 0:00:00]} 51. g4+ {[%emt 0:00:00]} hxg4+ {[%emt 0:00:00]} 52. hxg4+ {normal} 1/2-1/2

[Event "DVM U20w 2019"]
[Site "Braunschweig"]
[Date "2019.12.28"]
[Round "4"]
[White "Giede, Anna-Blume"]
[Black "Sereda, Yaroslava"]
[Result "0-1"]
[ECO "B24"]
[WhiteElo "1582"]
[BlackElo "1726"]
[Annotator "NA"]
[PlyCount "82"]
[EventDate "2019.12.27"]
[EventType "team-tourn"]
[EventRounds "7"]
[EventCountry "GER"]
[SourceTitle "playchess.com"]
[Source "ChessBase"]
[SourceQuality "1"]
[WhiteTeam "TuRa Harksheide Norderstedt"]
[BlackTeam "SG Solingen"]
[TimeControl "40/5400+30:1800+30"]

1. e4 {[%emt 0:00:00]} c5 {[%emt 0:00:00]} 2. Nc3 {[%emt 0:00:00]} Nc6 {[%emt 0:00:00]} 3. g3 {[%emt 0:00:00]} g6 {[%emt 0:00:15]} 4. Bg2 {[%emt 0:00:00]} Bg7 {[%emt 0:00:13]} 5. d3 {[%emt 0:00:10]} e6 {[%emt 0:00:18]} 6. f4 {[%emt 0:00:25]} d6 {[%emt 0:00:14]} 7. Nf3 {[%emt 0:00:23]} Nge7 {[%emt 0:00:25]} 8. O-O {[%emt 0:00:24]} O-O {[%emt 0:00:51]} 9. Be3 {[%emt 0:00:19]} Nd4 {[%emt 0:02:41]} 10. e5 {[%emt 0:14:18]} Nef5 {[%emt 0:24:36]} 11. Bf2 {[%emt 0:00:46]} Nxf3+ {[%emt 0:04:25]} 12. Bxf3 {[%emt 0:05:19]} Nd4 {[%emt 0:02:16]} 13. Bg2 {[%emt 0:02:49]} dxe5 {[%emt 0:10:36]} 14. fxe5 {[%emt 0:00:26]} Bxe5 {[%emt 0:05:59]} 15. Ne4 {[%emt 0:05:04]} Nf5 {[%emt 0:03:53]} 16. c3 {[%emt 0:24:55]} c4 {[%emt 0:04:59]} 17. dxc4 {[%emt 0:08:36]} Qc7 {[%emt 0:02:49]} 18. Qe2 {[%emt 0:05:59]} Bd7 {[%emt 0:03:00]} 19. Nc5 {[%emt 0:08:48]} Bg7 {[%emt 0:05:34]} 20. Bxb7 {[%emt 0:04:15]} Rad8 {[%emt 0:04:01]} 21. Rad1 {[%emt 0:04:42]} Nd6 {[%emt 0:04:07]} 22. Bg2 {[%emt 0:02:30]} Bc6 {[%emt 0:02:47]} 23. Bxc6 {[%emt 0:04:14]} Qxc6 {[%emt 0:00:05]} 24. Qg4 {[%emt 0:04:36]} Nb7 {[%emt 0:04:38]} 25. Nxb7 {[%emt 0:00:56]} Qxb7 {[%emt 0:00:05]} 26. Bc5 {[%emt 0:00:52]} Rfe8 {[%emt 0:00:32]} 27. Rxd8 {[%emt 0:00:30]} Rxd8 {[%emt 0:00:14]} 28. Qf3 {[%emt 0:00:32]} Qc7 {[%emt 0:01:03]} 29. Qf2 {[%emt 0:01:31]} Rd7 {[%emt 0:01:46]} 30. Qe3 {[%emt 0:00:26]} Qb7 {[%emt 0:02:39]} 31. b3 {[%emt 0:00:56]} Qa6 {[%emt 0:00:47]} 32. Rf2 {[%emt 0:00:34]} Rd1+ {[%emt 0:02:37]} 33. Kg2 {[%emt 0:00:04]} Rd7 {[%emt 0:00:52]} 34. Qf3 {[%emt 0:00:46]} Qc8 {[%emt 0:01:29]} 35. Qe3 {[%emt 0:00:21]} Qc6+ {[%emt 0:00:39]} 36. Rf3 {[%emt 0:00:50]} Qa6 {[%emt 0:01:20]} 37. Rf2 {[%emt 0:00:17]} Qc6+ {[%emt 0:00:59]} 38. Rf3 {[%emt 0:00:43]} a6 {[%emt 0:00:45]} 39. Bd4 {[%emt 0:00:38]} e5 {[%emt 0:02:01]} 40. Bc5 {[%emt 0:00:27]} e4 {[%emt 0:01:39]} 41. Rf1 {[%emt 0:03:57]} Bxc3 {[%emt 0:17:11] normal} 0-1

[Event "DVM U20w 2019"]
[Site "Braunschweig"]
[Date "2019.12.28"]
[Round "4"]
[White "Sauer, Annika"]
[Black "Nanthivarman, Merymuthu"]
[Result "1-0"]
[ECO "A43"]
[WhiteElo "1569"]
[BlackElo "1260"]
[Annotator "NA"]
[PlyCount "98"]
[EventDate "2019.12.27"]
[EventType "team-tourn"]
[EventRounds "7"]
[EventCountry "GER"]
[SourceTitle "playchess.com"]
[Source "ChessBase"]
[SourceQuality "1"]
[WhiteTeam "Leegebrucher SF"]
[BlackTeam "OSG Baden-Baden"]
[TimeControl "40/5400+30:1800+30"]

1. d4 {[%emt 0:00:00]} c5 {[%emt 0:00:00]} 2. e3 {[%emt 0:01:33]} cxd4 {[%emt 0:00:00]} 3. exd4 {[%emt 0:00:16]} d5 {[%emt 0:00:00]} 4. Nf3 {[%emt 0:02:18]} Nc6 {[%emt 0:00:11]} 5. c3 {[%emt 0:05:48]} Bg4 {[%emt 0:00:16]} 6. Be2 {[%emt 0:00:13]} Nf6 {[%emt 0:00:53]} 7. Bf4 {[%emt 0:01:51]} e6 {[%emt 0:00:11]} 8. Nbd2 {[%emt 0:10:45]} Be7 {[%emt 0:00:18]} 9. O-O {[%emt 0:00:19]} O-O {[%emt 0:00:12]} 10. h3 {[%emt 0:06:12]} Bh5 {[%emt 0:00:12]} 11. Re1 {[%emt 0:00:36]} Bxf3 {[%emt 0:06:39]} 12. Nxf3 {[%emt 0:08:23]} Nh5 {[%emt 0:02:36]} 13. Qd2 {[%emt 0:06:15]} Nxf4 {[%emt 0:00:23]} 14. Qxf4 {[%emt 0:00:07]} Bd6 {[%emt 0:00:11]} 15. Qd2 {[%emt 0:02:06]} e5 {[%emt 0:03:13]} 16. dxe5 {[%emt 0:00:27]} Bxe5 {[%emt 0:00:55]} 17. Nxe5 {[%emt 0:00:53]} Nxe5 {[%emt 0:00:15]} 18. Rad1 {[%emt 0:06:22]} Nc4 {[%emt 0:04:40]} 19. Bxc4 {[%emt 0:02:37]} dxc4 {[%emt 0:00:21]} 20. Qxd8 {[%emt 0:00:23]} Raxd8 {[%emt 0:00:05]} 21. Rxd8 {[%emt 0:00:10]} Rxd8 {[%emt 0:00:04]} 22. Re7 {[%emt 0:00:15]} g6 {[%emt 0:14:49]} 23. Rxb7 {[%emt 0:00:58]} Rd1+ {[%emt 0:00:22]} 24. Kh2 {[%emt 0:00:06]} Rd2 {[%emt 0:00:08]} 25. Kg3 {[%emt 0:00:48]} a5 {[%emt 0:02:08]} 26. a3 {[%emt 0:02:09]} Kg7 {[%emt 0:01:55]} 27. Kf3 {[%emt 0:00:51]} Rd3+ {[%emt 0:09:09]} 28. Ke2 {[%emt 0:00:16]} Rd5 {[%emt 0:02:09]} 29. a4 {[%emt 0:03:01]} Re5+ {[%emt 0:00:46]} 30. Kd2 {[%emt 0:01:47]} Rd5+ {[%emt 0:00:09]} 31. Ke3 {[%emt 0:00:11]} Rd3+ {[%emt 0:00:20]} 32. Ke2 {[%emt 0:00:06]} Rd5 {[%emt 0:01:55]} 33. Rb5 {[%emt 0:00:14]} Rd6 {[%emt 0:03:31]} 34. Rxa5 {[%emt 0:00:24]} Kf6 {[%emt 0:01:32]} 35. Rc5 {[%emt 0:01:48]} Re6+ {[%emt 0:00:51]} 36. Kf3 {[%emt 0:01:09]} Rb6 {[%emt 0:01:43]} 37. Rb5 {[%emt 0:00:33]} Ra6 {[%emt 0:00:13]} 38. a5 {[%emt 0:00:05]} Ke7 {[%emt 0:00:26]} 39. Ke4 {[%emt 0:01:17]} Kd7 {[%emt 0:00:20]} 40. Kd4 {[%emt 0:00:07]} Kc6 {[%emt 0:00:21]} 41. Rb6+ {[%emt 0:30:13]} Rxb6 {[%emt 0:30:05]} 42. axb6 {[%emt 0:00:05]} Kxb6 {[%emt 0:00:04]} 43. Kxc4 {[%emt 0:00:04]} Kc6 {[%emt 0:00:14]} 44. b4 {[%emt 0:01:37]} f5 {[%emt 0:01:49]} 45. b5+ {[%emt 0:00:22]} Kb6 {[%emt 0:00:14]} 46. Kd5 {[%emt 0:00:17]} Kc7 {[%emt 0:00:20]} 47. c4 {[%emt 0:00:30]} Kb6 {[%emt 0:00:11]} 48. Kd6 {[%emt 0:00:46]} Kb7 {[%emt 0:00:08]} 49. c5 {[%emt 0:00:05]} h6 {[%emt 0:00:07] normal} 1-0

[Event "DVM U20w 2019"]
[Site "Braunschweig"]
[Date "2019.12.28"]
[Round "4"]
[White "Visvikis, Kassandra"]
[Black "Kung, Fanny"]
[Result "1-0"]
[ECO "B01"]
[WhiteElo "1568"]
[BlackElo "1426"]
[Annotator "NA"]
[PlyCount "77"]
[EventDate "2019.12.27"]
[EventType "team-tourn"]
[EventRounds "7"]
[EventCountry "GER"]
[SourceTitle "playchess.com"]
[Source "ChessBase"]
[SourceQuality "1"]
[WhiteTeam "OSG Baden-Baden"]
[BlackTeam "Leegebrucher SF"]
[TimeControl "40/5400+30:1800+30"]

1. e4 {[%emt 0:00:00]} d5 {[%emt 0:00:00]} 2. exd5 {[%emt 0:00:00]} Qxd5 {[%emt 0:00:00]} 3. Nc3 {[%emt 0:00:00]} Qd6 {[%emt 0:00:00]} 4. Bc4 {[%emt 0:00:27]} Nf6 {[%emt 0:00:17]} 5. d3 {[%emt 0:00:22]} a6 {[%emt 0:00:27]} 6. a3 {[%emt 0:00:56]} e6 {[%emt 0:00:59]} 7. Nge2 {[%emt 0:02:04]} b5 {[%emt 0:00:38]} 8. Ba2 {[%emt 0:00:12]} Bb7 {[%emt 0:00:45]} 9. f3 {[%emt 0:00:33]} c5 {[%emt 0:02:13]} 10. Bf4 {[%emt 0:01:41]} Qb6 {[%emt 0:03:22]} 11. Qd2 {[%emt 0:04:18]} Nc6 {[%emt 0:02:35]} 12. Be3 {[%emt 0:05:59]} Qc7 {[%emt 0:01:17]} 13. O-O {[%emt 0:05:37]} Be7 {[%emt 0:03:37]} 14. Ng3 {[%emt 0:01:08]} O-O {[%emt 0:03:18]} 15. Nce4 {[%emt 0:00:52]} Na5 {[%emt 0:09:14]} 16. Kh1 {[%emt 0:04:12]} Rfd8 {[%emt 0:04:17]} 17. Qf2 {[%emt 0:05:21]} Bxe4 {[%emt 0:05:30]} 18. Nxe4 {[%emt 0:00:16]} Nb7 {[%emt 0:00:17]} 19. b4 {[%emt 0:01:41]} Rac8 {[%emt 0:01:23]} 20. Rad1 {[%emt 0:06:13]} Rd7 {[%emt 0:02:36]} 21. bxc5 {[%emt 0:01:24]} Nxc5 {[%emt 0:00:35]} 22. Bxc5 {[%emt 0:10:36]} Nxe4 {[%emt 0:03:10]} 23. fxe4 {[%emt 0:00:22]} Bxc5 {[%emt 0:00:09]} 24. Qh4 {[%emt 0:01:08]} Bxa3 {[%emt 0:08:19]} 25. Qg4 {[%emt 0:00:12]} Re7 {[%emt 0:03:29]} 26. Rf2 {[%emt 0:01:29]} Bd6 {[%emt 0:04:29]} 27. h4 {[%emt 0:01:52]} h6 {[%emt 0:02:50]} 28. Rdf1 {[%emt 0:00:13]} Rf8 {[%emt 0:00:38]} 29. d4 {[%emt 0:04:46]} Qd7 {[%emt 0:02:52]} 30. e5 {[%emt 0:01:04]} Bc7 {[%emt 0:02:27]} 31. h5 {[%emt 0:00:48]} Kh8 {[%emt 0:01:06]} 32. c3 {[%emt 0:02:03]} Qe8 {[%emt 0:02:57]} 33. Bb1 {[%emt 0:00:26]} Rg8 {[%emt 0:00:49]} 34. Qe4 {[%emt 0:00:45]} g6 {[%emt 0:00:17]} 35. Qf4 {[%emt 0:01:58] normal} g5 {[%emt 0:04:39]} 36. Qf6+ {[%emt 0:00:14] normal} Rg7 {[%emt 0:00:52] normal} 37. Qxh6+ {[%emt 0:00:27]} Kg8 {[%emt 0:00:07]} 38. Qf6 {[%emt 0:00:28] normal} Bd8 {[%emt 0:02:07]} 39. h6 {[%emt 0:00:22] normal} 1-0